[Event "Live Chess"]
[Site "Chess.com"]
[Date "2024.06.01"]
[Round "-"]
[White "ProfPoisson"]
[Black "bonantagulo"]
[Result "0-1"]
[WhiteElo "1293"]
[BlackElo "2049"]
[TimeControl "300"]
[EndTime "13:33:12 PDT"]
[Termination "bonantagulo won by resignation"]

1. e4 {[%clk 0:04:50.7]} 1... c5 {[%clk 0:04:54.1]} 2. Nc3 {[%clk 0:04:47.1]}
2... e6 {[%clk 0:04:53.2]} 3. f4 {[%clk 0:04:43.8]} 3... Nc6 {[%clk 0:04:51.4]}
4. Nf3 {[%clk 0:04:42.1]} 4... d5 {[%clk 0:04:49.9]} 5. Bb5 {[%clk 0:04:39.7]}
5... Ne7 {[%clk 0:04:48.7]} 6. Bxc6+ {[%clk 0:04:29.3]} 6... Nxc6 {[%clk
0:04:48.6]} 7. exd5 {[%clk 0:04:27.1]} 7... exd5 {[%clk 0:04:48.5]} 8. O-O
{[%clk 0:04:19.8]} 8... Be7 {[%clk 0:04:46.7]} 9. d4 {[%clk 0:04:16.7]} 9... O-O
{[%clk 0:04:43.7]} 10. dxc5 {[%clk 0:04:04.5]} 10... Bxc5+ {[%clk 0:04:43.6]}
11. Kh1 {[%clk 0:04:02.1]} 11... Bg4 {[%clk 0:04:38.2]} 12. Qxd5 {[%clk
0:03:56.7]} 12... Qxd5 {[%clk 0:04:34.4]} 13. Nxd5 {[%clk 0:03:54.9]} 13... Rad8
{[%clk 0:04:34.3]} 14. c4 {[%clk 0:03:38.8]} 14... Nb4 {[%clk 0:04:27.5]} 15.
Nxb4 {[%clk 0:03:23.9]} 15... Bxf3 {[%clk 0:04:21.9]} 16. gxf3 {[%clk
0:03:17.1]} 16... Bxb4 {[%clk 0:04:20.1]} 17. a3 {[%clk 0:03:12.7]} 17... Bc5
{[%clk 0:04:09.1]} 18. b4 {[%clk 0:03:08.8]} 18... Bd4 {[%clk 0:04:08.4]} 19.
Rb1 {[%clk 0:03:01.7]} 19... Rfe8 {[%clk 0:04:07.1]} 20. Bb2 {[%clk 0:02:58.9]}
20... Re2 {[%clk 0:03:58.4]} 21. Bxd4 {[%clk 0:02:55.7]} 21... Rxd4 {[%clk
0:03:58.3]} 22. Rfe1 {[%clk 0:02:42.9]} 22... Rxe1+ {[%clk 0:03:52.4]} 23. Rxe1
{[%clk 0:02:41.4]} 23... Kf8 {[%clk 0:03:52]} 24. c5 {[%clk 0:02:24.1]} 24...
Rxf4 {[%clk 0:03:51.1]} 25. Kg2 {[%clk 0:02:21.5]} 25... Rc4 {[%clk 0:03:49.8]}
26. Re3 {[%clk 0:02:18.5]} 26... a5 {[%clk 0:03:47.1]} 27. Rb3 {[%clk 0:02:09]}
27... a4 {[%clk 0:03:40.1]} 28. Re3 {[%clk 0:02:01.5]} 28... f5 {[%clk
0:03:38.7]} 29. Kg3 {[%clk 0:02:00.2]} 29... f4+ {[%clk 0:03:37.2]} 0-1

[Event "Live Chess"]
[Site "Chess.com"]
[Date "2024.06.01"]
[Round "-"]
[White "Brooms1989"]
[Black "kylet1990"]
[Result "1-0"]
[WhiteElo "1112"]
[BlackElo "738"]
[TimeControl "300"]
[EndTime "13:33:41 PDT"]
[Termination "Brooms1989 won on time"]

1. e4 {[%clk 0:04:57.6]} 1... c6 {[%clk 0:04:57.9]} 2. Nf3 {[%clk 0:04:55.6]}
2... d5 {[%clk 0:04:56.3]} 3. exd5 {[%clk 0:04:55.5]} 3... cxd5 {[%clk
0:04:54.5]} 4. Ne5 {[%clk 0:04:55.1]} 4... Bf5 {[%clk 0:04:47.7]} 5. Bb5+ {[%clk
0:04:45.1]} 5... Bd7 {[%clk 0:04:40]} 6. Qf3 {[%clk 0:04:40.4]} 6... Nf6 {[%clk
0:04:31.8]} 7. Bxd7+ {[%clk 0:04:33.5]} 7... Nbxd7 {[%clk 0:04:20]} 8. d4 {[%clk
0:04:29.1]} 8... Nxe5 {[%clk 0:04:06.5]} 9. dxe5 {[%clk 0:04:26.8]} 9... Nd7
{[%clk 0:03:56.2]} 10. Qxd5 {[%clk 0:04:21.3]} 10... e6 {[%clk 0:03:45.9]} 11.
Qe4 {[%clk 0:04:10.9]} 11... Bc5 {[%clk 0:03:22.6]} 12. O-O {[%clk 0:03:57.6]}
12... O-O {[%clk 0:03:10.9]} 13. Be3 {[%clk 0:03:36.5]} 13... Bxe3 {[%clk
0:03:08.2]} 14. Qxe3 {[%clk 0:03:36.4]} 14... f5 {[%clk 0:03:04.8]} 15. Nc3
{[%clk 0:03:19.4]} 15... f4 {[%clk 0:02:55.2]} 16. Qe4 {[%clk 0:02:53.4]} 16...
Nc5 {[%clk 0:02:44.6]} 17. Qe2 {[%clk 0:02:34.2]} 17... Qb6 {[%clk 0:02:08.5]}
18. b3 {[%clk 0:02:24.9]} 18... Qb4 {[%clk 0:01:43.9]} 19. Nd1 {[%clk
0:01:36.4]} 19... Qd4 {[%clk 0:01:33.2]} 20. c3 {[%clk 0:01:20.9]} 20... Qd7
{[%clk 0:01:09.1]} 21. Nb2 {[%clk 0:01:10]} 21... Rf5 {[%clk 0:00:50.3]} 22.
Rad1 {[%clk 0:01:04.3]} 22... Qc6 {[%clk 0:00:40.2]} 23. Rd6 {[%clk 0:00:52.3]}
23... Qc7 {[%clk 0:00:34.5]} 24. Rfd1 {[%clk 0:00:45.5]} 24... Qa5 {[%clk
0:00:27.1]} 25. b4 {[%clk 0:00:38]} 25... Qxa2 {[%clk 0:00:23.7]} 26. bxc5
{[%clk 0:00:36]} 26... Qa3 {[%clk 0:00:19.1]} 27. Rd8+ {[%clk 0:00:28.4]} 27...
Rxd8 {[%clk 0:00:17.1]} 28. Rxd8+ {[%clk 0:00:28.3]} 28... Kf7 {[%clk
0:00:16.3]} 29. Rd7+ {[%clk 0:00:23.7]} 29... Kg6 {[%clk 0:00:13.9]} 30. Nc4
{[%clk 0:00:16.1]} 30... Qb3 {[%clk 0:00:11.5]} 31. Nd6 {[%clk 0:00:12]} 31...
Qxc3 {[%clk 0:00:09.6]} 32. Nxf5 {[%clk 0:00:09.1]} 32... Qxc5 {[%clk
0:00:08.4]} 33. Nh4+ {[%clk 0:00:06.2]} 33... Kg5 {[%clk 0:00:07.1]} 34. Qf3
{[%clk 0:00:04.9]} 34... Kxh4 {[%clk 0:00:05.8]} 35. g3+ {[%clk 0:00:02.5]}
35... Kg5 {[%clk 0:00:04.3]} 36. Rxg7+ {[%clk 0:00:00.5]} 1-0

[Event "Live Chess"]
[Site "Chess.com"]
[Date "2024.06.01"]
[Round "-"]
[White "RichardABates"]
[Black "booktrunk"]
[Result "1-0"]
[WhiteElo "2239"]
[BlackElo "1397"]
[TimeControl "300"]
[EndTime "13:33:51 PDT"]
[Termination "RichardABates won by resignation"]

1. d4 {[%clk 0:04:56.8]} 1... b6 {[%clk 0:04:55.6]} 2. e4 {[%clk 0:04:54.6]}
2... Bb7 {[%clk 0:04:49.7]} 3. Bd3 {[%clk 0:04:53.1]} 3... e6 {[%clk 0:04:44.4]}
4. Nf3 {[%clk 0:04:51.1]} 4... h6 {[%clk 0:04:25.8]} 5. O-O {[%clk 0:04:48.4]}
5... Nf6 {[%clk 0:04:23.8]} 6. e5 {[%clk 0:04:38.3]} 6... Nh7 {[%clk 0:04:19.6]}
7. Nc3 {[%clk 0:04:26.3]} 7... d6 {[%clk 0:04:14.4]} 8. Bf4 {[%clk 0:04:16.7]}
8... dxe5 {[%clk 0:04:12]} 9. dxe5 {[%clk 0:04:12.4]} 9... Be7 {[%clk
0:04:07.1]} 10. Bb5+ {[%clk 0:04:07.5]} 10... c6 {[%clk 0:04:03.1]} 11. Bd3
{[%clk 0:04:05.7]} 11... Ng5 {[%clk 0:03:54.1]} 12. Ne4 {[%clk 0:03:56.3]} 12...
Nxf3+ {[%clk 0:03:50.7]} 13. Qxf3 {[%clk 0:03:54.4]} 13... Nd7 {[%clk
0:03:45.2]} 14. Nd6+ {[%clk 0:03:48.7]} 14... Bxd6 {[%clk 0:03:43]} 15. exd6
{[%clk 0:03:47.3]} 15... Nf6 {[%clk 0:03:41.8]} 16. Be5 {[%clk 0:03:44.2]} 16...
Rb8 {[%clk 0:03:33]} 17. Rad1 {[%clk 0:03:39.9]} 17... Rc8 {[%clk 0:03:24.4]}
18. c4 {[%clk 0:03:29.6]} 18... Qd7 {[%clk 0:03:23.6]} 19. Bxf6 {[%clk
0:03:26.6]} 19... gxf6 {[%clk 0:03:21.9]} 20. Qxf6 {[%clk 0:03:25.2]} 20... Rg8
{[%clk 0:03:16.9]} 21. Be4 {[%clk 0:03:23.9]} 21... Rd8 {[%clk 0:03:07.4]} 22.
g3 {[%clk 0:03:04]} 22... c5 {[%clk 0:03:05.4]} 23. Qe7+ {[%clk 0:03:00.6]}
23... Qxe7 {[%clk 0:02:57.5]} 24. dxe7 {[%clk 0:02:59.4]} 24... Rxd1 {[%clk
0:02:55.4]} 25. Rxd1 {[%clk 0:02:58.2]} 25... Bxe4 {[%clk 0:02:26.6]} 26. Rd8+
{[%clk 0:02:55.8]} 26... Kxe7 {[%clk 0:02:25.9]} 27. Rxg8 {[%clk 0:02:54.2]}
27... h5 {[%clk 0:02:23.7]} 28. h4 {[%clk 0:02:52]} 28... Bg6 {[%clk 0:02:19]}
29. f3 {[%clk 0:02:49.4]} 29... Kd7 {[%clk 0:02:17.6]} 30. g4 {[%clk 0:02:48]}
30... hxg4 {[%clk 0:02:15.5]} 31. fxg4 {[%clk 0:02:46.8]} 31... Kc7 {[%clk
0:02:14.7]} 32. Rxg6 {[%clk 0:02:42.2]} 32... fxg6 {[%clk 0:02:12.6]} 33. h5
{[%clk 0:02:41.2]} 33... gxh5 {[%clk 0:02:11.2]} 34. gxh5 {[%clk 0:02:40]} 1-0

[Event "Live Chess"]
[Site "Chess.com"]
[Date "2024.06.01"]
[Round "-"]
[White "Crowded_House"]
[Black "FMOlexandrProhorov"]
[Result "0-1"]
[WhiteElo "1737"]
[BlackElo "2341"]
[TimeControl "300"]
[EndTime "13:33:53 PDT"]
[Termination "FMOlexandrProhorov won by checkmate"]

1. d4 {[%clk 0:04:57.6]} 1... g6 {[%clk 0:04:57.8]} 2. Bg5 {[%clk 0:04:56.3]}
2... c5 {[%clk 0:04:55.6]} 3. c3 {[%clk 0:04:53.8]} 3... cxd4 {[%clk 0:04:54.2]}
4. Qxd4 {[%clk 0:04:51]} 4... Nf6 {[%clk 0:04:49.7]} 5. Bxf6 {[%clk 0:04:49.9]}
5... exf6 {[%clk 0:04:48.8]} 6. Nf3 {[%clk 0:04:44.6]} 6... Bg7 {[%clk 0:04:48]}
7. Qe4+ {[%clk 0:04:39.3]} 7... Kf8 {[%clk 0:04:44.4]} 8. e3 {[%clk 0:04:30.2]}
8... Nc6 {[%clk 0:04:42.3]} 9. Nbd2 {[%clk 0:04:24.1]} 9... f5 {[%clk
0:04:40.2]} 10. Qc2 {[%clk 0:04:20.8]} 10... Bf6 {[%clk 0:04:37.2]} 11. Bc4
{[%clk 0:04:17.4]} 11... Kg7 {[%clk 0:04:37.1]} 12. O-O {[%clk 0:04:12.9]} 12...
d5 {[%clk 0:04:36.7]} 13. Bd3 {[%clk 0:04:01.6]} 13... Be6 {[%clk 0:04:36.6]}
14. Nd4 {[%clk 0:03:59.2]} 14... Re8 {[%clk 0:04:28.3]} 15. N2b3 {[%clk
0:03:56.4]} 15... Qd6 {[%clk 0:04:21.2]} 16. Nb5 {[%clk 0:03:48.5]} 16... Qb8
{[%clk 0:04:17.9]} 17. N5d4 {[%clk 0:03:41.7]} 17... a6 {[%clk 0:04:14.9]} 18.
Nc5 {[%clk 0:03:33.9]} 18... Bc8 {[%clk 0:04:12.8]} 19. Nf3 {[%clk 0:03:16.4]}
19... Qd6 {[%clk 0:04:09]} 20. Nb3 {[%clk 0:03:13]} 20... b5 {[%clk 0:04:07.1]}
21. Nfd4 {[%clk 0:03:04.3]} 21... Ne5 {[%clk 0:04:04.9]} 22. Be2 {[%clk
0:02:56.4]} 22... Bb7 {[%clk 0:04:03.9]} 23. Nf3 {[%clk 0:02:53.5]} 23... Ng4
{[%clk 0:03:57.1]} 24. h3 {[%clk 0:02:49.6]} 24... Nh6 {[%clk 0:03:55.7]} 25.
Na5 {[%clk 0:02:42.8]} 25... Bc8 {[%clk 0:03:52.7]} 26. Nd4 {[%clk 0:02:37.8]}
26... f4 {[%clk 0:03:50.5]} 27. Qd2 {[%clk 0:02:18.3]} 27... Qe5 {[%clk
0:03:41.2]} 28. Nac6 {[%clk 0:01:48.7]} 28... Qg5 {[%clk 0:03:34.1]} 29. Kh1
{[%clk 0:01:37.9]} 29... fxe3 {[%clk 0:03:26.8]} 30. fxe3 {[%clk 0:01:35.4]}
30... Nf5 {[%clk 0:03:22.4]} 31. Nxf5+ {[%clk 0:01:26.7]} 31... Bxf5 {[%clk
0:03:19.9]} 32. Rf3 {[%clk 0:01:15.6]} 32... Be4 {[%clk 0:03:11.4]} 33. Rf2
{[%clk 0:01:07.8]} 33... Rac8 {[%clk 0:03:05.5]} 34. Nd4 {[%clk 0:01:05.7]}
34... Be5 {[%clk 0:03:04.4]} 35. Raf1 {[%clk 0:00:52.7]} 35... Qg3 {[%clk
0:02:57]} 36. Rxf7+ {[%clk 0:00:25.7]} 36... Kh6 {[%clk 0:02:54.1]} 37. Kg1
{[%clk 0:00:17.2]} 37... Qxg2# {[%clk 0:02:49]} 0-1

[Event "Live Chess"]
[Site "Chess.com"]
[Date "2024.06.01"]
[Round "-"]
[White "BostonStrangler"]
[Black "Delacorta"]
[Result "1-0"]
[WhiteElo "2145"]
[BlackElo "1564"]
[TimeControl "300"]
[EndTime "13:33:53 PDT"]
[Termination "BostonStrangler won by resignation"]

1. Nf3 {[%clk 0:04:56.7]} 1... e6 {[%clk 0:04:58.6]} 2. g3 {[%clk 0:04:55.8]}
2... f5 {[%clk 0:04:57.8]} 3. d3 {[%clk 0:04:53.7]} 3... Nf6 {[%clk 0:04:56.9]}
4. Bg2 {[%clk 0:04:53]} 4... d5 {[%clk 0:04:56]} 5. O-O {[%clk 0:04:51.1]} 5...
Bd6 {[%clk 0:04:55]} 6. Nbd2 {[%clk 0:04:49.7]} 6... O-O {[%clk 0:04:53.9]} 7.
e4 {[%clk 0:04:48.3]} 7... fxe4 {[%clk 0:04:51.8]} 8. dxe4 {[%clk 0:04:47.1]}
8... dxe4 {[%clk 0:04:49.1]} 9. Ng5 {[%clk 0:04:45.8]} 9... e5 {[%clk
0:04:36.6]} 10. Ndxe4 {[%clk 0:04:42.4]} 10... Nxe4 {[%clk 0:04:35.3]} 11. Nxe4
{[%clk 0:04:41.2]} 11... Bf5 {[%clk 0:04:33.7]} 12. Qd5+ {[%clk 0:04:35.5]}
12... Kh8 {[%clk 0:04:30.1]} 13. Qxb7 {[%clk 0:04:33.5]} 13... Nd7 {[%clk
0:04:25.7]} 14. Nxd6 {[%clk 0:04:30.1]} 14... cxd6 {[%clk 0:04:23.3]} 15. Qxa8
{[%clk 0:04:29.2]} 15... Qxa8 {[%clk 0:04:19.3]} 16. Bxa8 {[%clk 0:04:28.7]}
16... Rxa8 {[%clk 0:04:17.6]} 17. c3 {[%clk 0:04:28.2]} 17... Bh3 {[%clk
0:04:07.9]} 18. Rd1 {[%clk 0:04:26.3]} 18... Nb6 {[%clk 0:03:58.3]} 19. Rxd6
{[%clk 0:04:21.8]} 19... Nc4 {[%clk 0:03:57.3]} 20. Rc6 {[%clk 0:04:10.7]} 20...
Rd8 {[%clk 0:03:55.8]} 21. Bg5 {[%clk 0:04:08.7]} 1-0

[Event "Live Chess"]
[Site "Chess.com"]
[Date "2024.06.01"]
[Round "-"]
[White "oscalik"]
[Black "Zhevzh1k7"]
[Result "1-0"]
[WhiteElo "2340"]
[BlackElo "1099"]
[TimeControl "300"]
[EndTime "13:33:59 PDT"]
[Termination "oscalik won by resignation"]

1. e4 {[%clk 0:04:57.2]} 1... c6 {[%clk 0:04:58.7]} 2. Nc3 {[%clk 0:04:55.7]}
2... d5 {[%clk 0:04:57.7]} 3. Qf3 {[%clk 0:04:55.4]} 3... dxe4 {[%clk 0:04:56]}
4. Nxe4 {[%clk 0:04:55.3]} 4... Nd7 {[%clk 0:04:51.8]} 5. b3 {[%clk 0:04:53.9]}
5... Ngf6 {[%clk 0:04:50.7]} 6. Bb2 {[%clk 0:04:52.8]} 6... Qb6 {[%clk
0:04:48.8]} 7. O-O-O {[%clk 0:04:47.9]} 7... e5 {[%clk 0:04:47]} 8. Nxf6+ {[%clk
0:04:44.5]} 8... Nxf6 {[%clk 0:04:44.9]} 9. Bxe5 {[%clk 0:04:41.5]} 9... Be7
{[%clk 0:04:42.6]} 10. h3 {[%clk 0:04:26]} 10... Qa5 {[%clk 0:04:40.3]} 11. Bb2
{[%clk 0:03:59.7]} 11... Qxa2 {[%clk 0:04:37.5]} 12. g4 {[%clk 0:03:54.4]} 12...
Ba3 {[%clk 0:04:35.3]} 13. Re1+ {[%clk 0:03:35.2]} 13... Be6 {[%clk 0:04:23.5]}
14. Kd1 {[%clk 0:02:33.9]} 14... Qxb2 {[%clk 0:04:04.8]} 15. Bc4 {[%clk
0:02:27.5]} 15... Qb1+ {[%clk 0:03:44.7]} 16. Ke2 {[%clk 0:02:25.8]} 16... Bxc4+
{[%clk 0:03:43.3]} 17. bxc4 {[%clk 0:02:23.1]} 17... Qxc2 {[%clk 0:03:26.2]} 18.
Qxa3 {[%clk 0:02:20.4]} 18... Qe4+ {[%clk 0:03:22.6]} 19. Kf1 {[%clk 0:02:19]}
19... Qxe1+ {[%clk 0:03:14.4]} 20. Kxe1 {[%clk 0:02:18.9]} 20... a5 {[%clk
0:02:41.4]} 21. Nf3 {[%clk 0:02:17]} 21... b6 {[%clk 0:02:28.4]} 22. Kd1 {[%clk
0:02:15.6]} 22... Ne4 {[%clk 0:02:23.3]} 23. Re1 {[%clk 0:02:14.3]} 23... f5
{[%clk 0:02:19.1]} 24. d3 {[%clk 0:02:13.2]} 24... fxg4 {[%clk 0:02:16.5]} 25.
Rxe4+ {[%clk 0:02:11.6]} 25... Kd7 {[%clk 0:02:14.4]} 26. Qe7+ {[%clk
0:02:10.5]} 1-0

[Event "Live Chess"]
[Site "Chess.com"]
[Date "2024.06.01"]
[Round "-"]
[White "koekoekoe"]
[Black "Pandreq"]
[Result "0-1"]
[WhiteElo "2026"]
[BlackElo "1152"]
[TimeControl "300"]
[EndTime "13:34:09 PDT"]
[Termination "Pandreq won by checkmate"]

1. d4 {[%clk 0:04:59]} 1... d5 {[%clk 0:04:56.9]} 2. Bf4 {[%clk 0:04:58.5]} 2...
c6 {[%clk 0:04:56.2]} 3. e3 {[%clk 0:04:58.1]} 3... Nf6 {[%clk 0:04:55.1]} 4. c4
{[%clk 0:04:57.7]} 4... Bf5 {[%clk 0:04:54.6]} 5. Nc3 {[%clk 0:04:57]} 5... e6
{[%clk 0:04:53.7]} 6. Nf3 {[%clk 0:04:56.4]} 6... Bb4 {[%clk 0:04:53.2]} 7. Be2
{[%clk 0:04:54.9]} 7... Nbd7 {[%clk 0:04:52.6]} 8. O-O {[%clk 0:04:53.4]} 8...
O-O {[%clk 0:04:50.9]} 9. Rc1 {[%clk 0:04:52.9]} 9... c5 {[%clk 0:04:48.3]} 10.
cxd5 {[%clk 0:04:50.8]} 10... Nxd5 {[%clk 0:04:46.6]} 11. Nxd5 {[%clk
0:04:49.6]} 11... exd5 {[%clk 0:04:45.1]} 12. dxc5 {[%clk 0:04:44.5]} 12... Bxc5
{[%clk 0:04:39.9]} 13. Qxd5 {[%clk 0:04:40.7]} 13... Be6 {[%clk 0:04:35.8]} 14.
Qxb7 {[%clk 0:04:29.2]} 14... Bxa2 {[%clk 0:04:27.3]} 15. Rfd1 {[%clk
0:04:21.8]} 15... Be6 {[%clk 0:04:23.6]} 16. Rxd7 {[%clk 0:03:43.4]} 16... Qxd7
{[%clk 0:04:15.3]} 17. Qxd7 {[%clk 0:03:41.2]} 17... Bxd7 {[%clk 0:04:14.1]} 18.
Rxc5 {[%clk 0:03:40.5]} 18... Rfc8 {[%clk 0:04:03.7]} 19. b4 {[%clk 0:03:29.9]}
19... a5 {[%clk 0:03:56]} 20. Bd6 {[%clk 0:02:40.9]} 20... Rxc5 {[%clk
0:03:44.2]} 21. Bxc5 {[%clk 0:02:37.9]} 21... a4 {[%clk 0:03:40.4]} 22. Bc4
{[%clk 0:02:26.7]} 22... a3 {[%clk 0:03:33.6]} 23. Nd2 {[%clk 0:01:52.7]} 23...
a2 {[%clk 0:03:26.9]} 24. Bxa2 {[%clk 0:01:49.5]} 24... Rxa2 {[%clk 0:03:25.4]}
25. Nb3 {[%clk 0:01:39.6]} 25... Rb2 {[%clk 0:03:17.9]} 26. Kf1 {[%clk
0:01:34.8]} 26... Rxb3 {[%clk 0:03:15.2]} 27. Ke2 {[%clk 0:01:34.7]} 27... Bb5+
{[%clk 0:03:12.6]} 28. Kf3 {[%clk 0:01:33.5]} 28... f6 {[%clk 0:03:04.5]} 29. h4
{[%clk 0:01:29.9]} 29... g6 {[%clk 0:03:02.8]} 30. g4 {[%clk 0:01:29.4]} 30...
Kf7 {[%clk 0:03:01.1]} 31. Kf4 {[%clk 0:01:28.7]} 31... Ke6 {[%clk 0:02:58.7]}
32. e4 {[%clk 0:01:27.3]} 32... h6 {[%clk 0:02:49.8]} 33. h5 {[%clk 0:01:25.3]}
33... g5# {[%clk 0:02:47.6]} 0-1

[Event "Live Chess"]
[Site "Chess.com"]
[Date "2024.06.01"]
[Round "-"]
[White "peteopeteo"]
[Black "GwaryTek"]
[Result "0-1"]
[WhiteElo "1582"]
[BlackElo "1928"]
[TimeControl "300"]
[EndTime "13:34:15 PDT"]
[Termination "GwaryTek won by resignation"]

1. e4 {[%clk 0:04:58.2]} 1... Nf6 {[%clk 0:04:59.9]} 2. Nc3 {[%clk 0:04:57.3]}
2... d5 {[%clk 0:04:58]} 3. exd5 {[%clk 0:04:48.9]} 3... Nxd5 {[%clk 0:04:55.5]}
4. Nxd5 {[%clk 0:04:46.9]} 4... Qxd5 {[%clk 0:04:53.9]} 5. Qf3 {[%clk
0:04:43.6]} 5... c6 {[%clk 0:04:52.1]} 6. b3 {[%clk 0:04:38]} 6... Qe5+ {[%clk
0:04:49.5]} 7. Ne2 {[%clk 0:04:17.5]} 7... Qxa1 {[%clk 0:04:49.4]} 8. g3 {[%clk
0:04:10.3]} 8... Qf6 {[%clk 0:04:47.1]} 9. Bg2 {[%clk 0:04:09.2]} 9... Qxf3
{[%clk 0:04:45.1]} 10. Bxf3 {[%clk 0:04:09.1]} 10... Bf5 {[%clk 0:04:39.4]} 11.
Nd4 {[%clk 0:04:08.4]} 11... Bg6 {[%clk 0:04:37.2]} 12. O-O {[%clk 0:04:06.9]}
12... e5 {[%clk 0:04:35.7]} 13. Ne2 {[%clk 0:04:03.9]} 13... Bxc2 {[%clk
0:04:33.3]} 14. Bb2 {[%clk 0:04:03]} 14... f6 {[%clk 0:04:29.7]} 15. Rc1 {[%clk
0:04:01.8]} 15... Bg6 {[%clk 0:04:26.3]} 16. h4 {[%clk 0:04:00.6]} 16... Nd7
{[%clk 0:04:22]} 17. d4 {[%clk 0:03:59.1]} 17... e4 {[%clk 0:04:19]} 18. Bg4
{[%clk 0:03:57.9]} 18... f5 {[%clk 0:04:17.4]} 19. Bh3 {[%clk 0:03:56.4]} 19...
Bd6 {[%clk 0:04:11.6]} 20. h5 {[%clk 0:03:48.9]} 20... Bxh5 {[%clk 0:04:06.9]}
21. Nc3 {[%clk 0:03:45]} 21... g6 {[%clk 0:03:56.2]} 22. g4 {[%clk 0:03:44.1]}
22... fxg4 {[%clk 0:03:51.9]} 23. Nxe4 {[%clk 0:03:43.4]} 23... Bf4 {[%clk
0:03:46.9]} 24. Bg2 {[%clk 0:03:36.3]} 24... Bxc1 {[%clk 0:03:43.8]} 25. Bxc1
{[%clk 0:03:36.2]} 25... O-O-O {[%clk 0:03:42.2]} 26. Nd6+ {[%clk 0:03:28.3]}
26... Kb8 {[%clk 0:03:37.3]} 27. Bf4 {[%clk 0:03:27.5]} 27... Ka8 {[%clk
0:03:35.3]} 28. d5 {[%clk 0:03:19.8]} 28... c5 {[%clk 0:03:23]} 29. Nf7 {[%clk
0:03:14.3]} 29... Rhf8 {[%clk 0:03:20.6]} 30. Nxd8 {[%clk 0:03:08.9]} 30... Rxd8
{[%clk 0:03:16.8]} 31. d6 {[%clk 0:03:08.8]} 31... Kb8 {[%clk 0:03:10.5]} 32.
Bd5 {[%clk 0:02:54.9]} 32... Rf8 {[%clk 0:03:01.2]} 33. Be3 {[%clk 0:02:52.9]}
33... Nf6 {[%clk 0:02:46.6]} 34. Bc4 {[%clk 0:02:16.5]} 34... Ne4 {[%clk
0:02:23.8]} 35. Bd3 {[%clk 0:01:58.9]} 35... Nxd6 {[%clk 0:02:17.9]} 36. Bxc5
{[%clk 0:01:58.1]} 36... Rd8 {[%clk 0:02:16.2]} 37. Be3 {[%clk 0:01:53.4]} 37...
g3 {[%clk 0:02:05]} 38. Bf4 {[%clk 0:01:49]} 38... gxf2+ {[%clk 0:01:59.7]} 39.
Kxf2 {[%clk 0:01:48.9]} 39... Bg4 {[%clk 0:01:56.1]} 40. Kg3 {[%clk 0:01:44]}
40... Bf5 {[%clk 0:01:54.9]} 41. Bc4 {[%clk 0:01:37.4]} 41... Kc8 {[%clk
0:01:45]} 42. Be2 {[%clk 0:01:31.2]} 42... Ne4+ {[%clk 0:01:39.4]} 43. Kg2
{[%clk 0:01:28.5]} 43... Kd7 {[%clk 0:01:32.1]} 44. Bg5 {[%clk 0:01:27.5]} 44...
Nxg5 {[%clk 0:01:28.4]} 0-1

[Event "Live Chess"]
[Site "Chess.com"]
[Date "2024.06.01"]
[Round "-"]
[White "Ferrarifan27"]
[Black "DoctorMantisTobogganMD"]
[Result "0-1"]
[WhiteElo "2062"]
[BlackElo "2175"]
[TimeControl "300"]
[EndTime "13:34:18 PDT"]
[Termination "DoctorMantisTobogganMD won by checkmate"]

1. e4 {[%clk 0:04:57.4]} 1... c6 {[%clk 0:04:59]} 2. d4 {[%clk 0:04:55.9]} 2...
g6 {[%clk 0:04:58.9]} 3. Nf3 {[%clk 0:04:54.3]} 3... Bg7 {[%clk 0:04:58.1]} 4.
Nc3 {[%clk 0:04:52.8]} 4... d5 {[%clk 0:04:57.3]} 5. e5 {[%clk 0:04:50.8]} 5...
Bg4 {[%clk 0:04:56.3]} 6. h3 {[%clk 0:04:49.2]} 6... Bxf3 {[%clk 0:04:55.3]} 7.
Qxf3 {[%clk 0:04:49.1]} 7... f6 {[%clk 0:04:54.7]} 8. exf6 {[%clk 0:04:47.3]}
8... Nxf6 {[%clk 0:04:54.6]} 9. Bd3 {[%clk 0:04:43.5]} 9... O-O {[%clk
0:04:51.4]} 10. O-O {[%clk 0:04:41.9]} 10... Ne4 {[%clk 0:04:47.7]} 11. Qg4
{[%clk 0:04:35.9]} 11... Nxc3 {[%clk 0:04:45.5]} 12. bxc3 {[%clk 0:04:33.1]}
12... Nd7 {[%clk 0:04:43.5]} 13. Qe6+ {[%clk 0:04:28.5]} 13... Kh8 {[%clk
0:04:42.5]} 14. Bg5 {[%clk 0:04:26.4]} 14... Bf6 {[%clk 0:04:37.9]} 15. Bh6
{[%clk 0:04:24.8]} 15... Bg7 {[%clk 0:04:36.6]} 16. Bxg7+ {[%clk 0:04:22.9]}
16... Kxg7 {[%clk 0:04:35.7]} 17. Rfe1 {[%clk 0:04:20.8]} 17... Rf7 {[%clk
0:04:26.1]} 18. Rab1 {[%clk 0:04:17.6]} 18... Rb8 {[%clk 0:04:22.1]} 19. h4
{[%clk 0:04:04.9]} 19... Nf6 {[%clk 0:04:20.4]} 20. c4 {[%clk 0:03:52.6]} 20...
Qd6 {[%clk 0:04:15.2]} 21. cxd5 {[%clk 0:03:50.2]} 21... Nxd5 {[%clk 0:04:10.4]}
22. g3 {[%clk 0:03:38.4]} 22... Qxe6 {[%clk 0:04:05]} 23. Rxe6 {[%clk
0:03:36.4]} 23... Rf6 {[%clk 0:04:04.5]} 24. Rbe1 {[%clk 0:03:32.1]} 24... Rxe6
{[%clk 0:04:03.3]} 25. Rxe6 {[%clk 0:03:31]} 25... Kf7 {[%clk 0:04:02.8]} 26.
Re1 {[%clk 0:03:27.5]} 26... b5 {[%clk 0:04:01.4]} 27. h5 {[%clk 0:03:16.6]}
27... a5 {[%clk 0:03:56.2]} 28. hxg6+ {[%clk 0:03:15.4]} 28... hxg6 {[%clk
0:03:56.1]} 29. Kg2 {[%clk 0:03:14.4]} 29... Kf6 {[%clk 0:03:54.2]} 30. Rh1
{[%clk 0:03:12.4]} 30... Kg7 {[%clk 0:03:44.7]} 31. Be4 {[%clk 0:03:08.9]} 31...
Rc8 {[%clk 0:03:37.9]} 32. Rh4 {[%clk 0:03:04.2]} 32... Nf6 {[%clk 0:03:36.1]}
33. Bd3 {[%clk 0:02:59]} 33... b4 {[%clk 0:03:33.9]} 34. Rh1 {[%clk 0:02:50.7]}
34... c5 {[%clk 0:03:32.1]} 35. dxc5 {[%clk 0:02:48.4]} 35... Rxc5 {[%clk
0:03:31]} 36. Re1 {[%clk 0:02:47.4]} 36... e5 {[%clk 0:03:29.8]} 37. f4 {[%clk
0:02:39.7]} 37... e4 {[%clk 0:03:28.5]} 38. Bxe4 {[%clk 0:02:34.2]} 38... Nxe4
{[%clk 0:03:27.1]} 39. Rxe4 {[%clk 0:02:33.6]} 39... Rxc2+ {[%clk 0:03:26.5]}
40. Kf3 {[%clk 0:02:33.1]} 40... Rxa2 {[%clk 0:03:25.5]} 41. Kg4 {[%clk
0:02:24.9]} 41... Kf6 {[%clk 0:03:22.3]} 42. Rc4 {[%clk 0:02:23.8]} 42... b3
{[%clk 0:03:18.3]} 43. Rc6+ {[%clk 0:02:22.9]} 43... Kf7 {[%clk 0:03:16.9]} 44.
Kg5 {[%clk 0:02:21.6]} 44... a4 {[%clk 0:03:09.5]} 45. Rc7+ {[%clk 0:02:20.1]}
45... Ke6 {[%clk 0:03:08.4]} 46. Kxg6 {[%clk 0:02:19.2]} 46... b2 {[%clk
0:03:06.5]} 47. f5+ {[%clk 0:02:17.9]} 47... Kd6 {[%clk 0:03:05.5]} 48. Rb7
{[%clk 0:02:15.3]} 48... a3 {[%clk 0:03:04.5]} 49. f6 {[%clk 0:02:13.7]} 49...
Ra1 {[%clk 0:03:03.8]} 50. f7 {[%clk 0:02:11.8]} 50... Rf1 {[%clk 0:03:02.7]}
51. Kg7 {[%clk 0:02:01.3]} 51... a2 {[%clk 0:02:52.9]} 52. f8=Q+ {[%clk
0:01:43.9]} 52... Rxf8 {[%clk 0:02:49]} 53. Kxf8 {[%clk 0:01:41]} 53... b1=Q
{[%clk 0:02:46.4]} 54. Rxb1 {[%clk 0:01:38.5]} 54... axb1=Q {[%clk 0:02:45.5]}
55. g4 {[%clk 0:01:33.4]} 55... Ke6 {[%clk 0:02:38.5]} 56. g5 {[%clk 0:01:31.3]}
56... Qf5+ {[%clk 0:02:34.5]} 57. Ke8 {[%clk 0:01:26.7]} 57... Qf7+ {[%clk
0:02:33.1]} 58. Kd8 {[%clk 0:01:25.8]} 58... Qd7# {[%clk 0:02:33]} 0-1